fUST/lending_fUST_20260620
["ID","MTS","AMOUNT","RATE_DAILY","PERIOD"]
[425804286,1781913045000,-1298.7,0.00017534,2]
[425804283,1781913045000,-500.0,0.00017534,2]
[425804284,1781913045000,-500.0,0.00017534,2]
[425804294,1781913045000,-727.8,0.00017534,2]
[425804304,1781913045000,-1233.8,0.00017534,2]
[425804296,1781913045000,-697.18,0.00017534,2]
[425804295,1781913045000,-3369.19,0.00017534,2]
[425804293,1781913045000,-500.0,0.00017534,2]
[425804305,1781913045000,-1000.0,0.00017534,2]
[425804269,1781913045000,-802.53,0.00017534,2]
[425804285,1781913045000,-2789.02,0.00017534,2]
[425804271,1781913045000,-500.0,0.00017534,2]
[425804252,1781913045000,-1788.54,0.00017534,2]
[425804268,1781913045000,-500.0,0.00017534,2]
[425804238,1781913045000,-831.56,0.00017534,2]
[425804243,1781913045000,-500.0,0.00017534,2]
[425804249,1781913045000,-500.0,0.00017534,2]
[425804245,1781913045000,-708.92,0.00017534,2]
[425804242,1781913045000,-500.0,0.00017534,2]
[425804250,1781913045000,-500.0,0.00017534,2]
[425804241,1781913045000,-556.06,0.00017534,2]
[425804246,1781913045000,-500.0,0.00017534,2]
[425804240,1781913045000,-500.0,0.00017534,2]
[425804248,1781913045000,-500.0,0.00017534,2]
[425804244,1781913045000,-500.0,0.00017534,2]
[425804239,1781913045000,-500.0,0.00017534,2]
[425804251,1781913045000,-876.67,0.00017534,2]
[425804266,1781913045000,-712.61,0.00017534,2]
[425804247,1781913045000,-500.0,0.00017534,2]
[425804254,1781913045000,-500.0,0.00017534,2]
[425804261,1781913045000,-728.82,0.00017534,2]
[425804258,1781913045000,-649.99,0.00017534,2]
[425804259,1781913045000,-500.0,0.00017534,2]
[425804255,1781913045000,-1905.85,0.00017534,2]
[425804257,1781913045000,-1079.84,0.00017534,2]
[425804262,1781913045000,-500.0,0.00017534,2]
[425804263,1781913045000,-500.0,0.00017534,2]
[425804256,1781913045000,-500.0,0.00017534,2]
[425804264,1781913045000,-500.0,0.00017534,2]
[425804265,1781913045000,-500.0,0.00017534,2]
[425804260,1781913045000,-500.0,0.00017534,2]
[425804267,1781913045000,-500.0,0.00017534,2]
[425804253,1781913045000,-500.0,0.00017534,2]
[425804297,1781913045000,-540.94519425,0.00017534,2]
[425804270,1781913045000,-606.58,0.00017534,2]
[425804302,1781913045000,-2863.02,0.00017534,2]
[425804338,1781913045000,-4507.10311405,0.000177,2]
[425804336,1781913045000,-195.402897,0.0001764,2]
[425804342,1781913045000,-740.41,0.00017808,2]
[425804344,1781913045000,-780.1,0.00017808,2]
[425804339,1781913045000,-306.09,0.00017802,2]
[425804340,1781913045000,-306.09,0.00017803,2]
[425804335,1781913045000,-165.59332112,0.0001754,2]
[425804343,1781913045000,-783.69,0.00017808,2]
[425804345,1781913045000,-500.0,0.00017808,2]
[425804341,1781913045000,-309.77,0.00017803,2]
[425804346,1781913045000,-500.0,0.00017808,2]
[425804348,1781913045000,-831.56,0.00017808,2]
[425804349,1781913045000,-500.0,0.00017808,2]
[425804351,1781913045000,-556.06,0.00017808,2]
[425804350,1781913045000,-500.0,0.00017808,2]
[425804354,1781913045000,-500.0,0.00017808,2]
[425804352,1781913045000,-500.0,0.00017808,2]
[425804353,1781913045000,-500.0,0.00017808,2]
[425804360,1781913045000,-500.0,0.00017808,2]
[425804361,1781913045000,-876.67,0.00017808,2]
[425804356,1781913045000,-500.0,0.00017808,2]
[425804364,1781913045000,-500.0,0.00017808,2]
[425804358,1781913045000,-500.0,0.00017808,2]
[425804362,1781913045000,-1788.54,0.00017808,2]
[425804363,1781913045000,-500.0,0.00017808,2]
[425804355,1781913045000,-708.92,0.00017808,2]
[425804357,1781913045000,-500.0,0.00017808,2]
[425804359,1781913045000,-500.0,0.00017808,2]
[425804298,1781913045000,-1471.99,0.00017534,2]
[425804337,1781913045000,-214.310413,0.0001764,2]
[425804334,1781913045000,-200.0,0.0001754,2]
[425804347,1781913045000,-500.0,0.00017808,2]
[425804333,1781913045000,-943.28,0.00017534,2]
[425804324,1781913045000,-1331.04,0.00017534,2]
[425804301,1781913045000,-500.0,0.00017534,2]
[425804300,1781913045000,-1074.82,0.00017534,2]
[425804306,1781913045000,-5275.87,0.00017534,2]
[425804310,1781913045000,-877.91,0.00017534,2]
[425804319,1781913045000,-1673.51,0.00017534,2]
[425804309,1781913045000,-500.0,0.00017534,2]
[425804308,1781913045000,-500.0,0.00017534,2]
[425804307,1781913045000,-2086.93,0.00017534,2]
[425804317,1781913045000,-2002.33,0.00017534,2]
[425804316,1781913045000,-500.0,0.00017534,2]
[425804312,1781913045000,-1169.22,0.00017534,2]
[425804318,1781913045000,-20355.87,0.00017534,2]
[425804314,1781913045000,-500.0,0.00017534,2]
[425804313,1781913045000,-500.0,0.00017534,2]
[425804303,1781913045000,-3227.06,0.00017534,2]
[425804327,1781913045000,-500.0,0.00017534,2]
[425804315,1781913045000,-500.0,0.00017534,2]
[425804332,1781913045000,-895.94,0.00017534,2]
[425804331,1781913045000,-3573.02,0.00017534,2]
[425804321,1781913045000,-500.0,0.00017534,2]
[425804328,1781913045000,-3130.24,0.00017534,2]
[425804323,1781913045000,-915.84,0.00017534,2]
[425804320,1781913045000,-1221.2,0.00017534,2]
[425804325,1781913045000,-1158.33,0.00017534,2]
[425804311,1781913045000,-500.0,0.00017534,2]
[425804330,1781913045000,-454.36377434,0.00017534,2]
[425804329,1781913045000,-500.0,0.00017534,2]
[425804326,1781913045000,-500.0,0.00017534,2]
[425804322,1781913045000,-500.0,0.00017534,2]
[425804407,1781913046000,-1074.82,0.00017808,2]
[425804417,1781913046000,-877.91,0.00017808,2]
[425804395,1781913046000,-1298.7,0.00017808,2]
[425804413,1781913046000,-5275.87,0.00017808,2]
[425804418,1781913046000,-500.0,0.00017808,2]
[425804402,1781913046000,-727.8,0.00017808,2]
[425804393,1781913046000,-500.0,0.00017808,2]
[425804397,1781913046000,-2075.89,0.00017808,2]
[425804401,1781913046000,-500.0,0.00017808,2]
[425804403,1781913046000,-3369.19,0.00017808,2]
[425804398,1781913046000,-500.0,0.00017808,2]
[425804400,1781913046000,-500.0,0.00017808,2]
[425804412,1781913046000,-1000.0,0.00017808,2]
[425804399,1781913046000,-500.0,0.00017808,2]
[425804406,1781913046000,-3130.15,0.00017808,2]
[425804411,1781913046000,-1233.8,0.00017808,2]
[425804410,1781913046000,-3227.06,0.00017808,2]
[425804409,1781913046000,-2863.02,0.00017808,2]
[425804408,1781913046000,-500.0,0.00017808,2]
[425804416,1781913046000,-500.0,0.00017808,2]
[425804415,1781913046000,-500.0,0.00017808,2]
[425804419,1781913046000,-1169.22,0.00017808,2]
[425804421,1781913046000,-500.0,0.00017808,2]
[425804420,1781913046000,-500.0,0.00017808,2]
[425804430,1781913046000,-500.0,0.00017808,2]
[425804426,1781913046000,-500.0,0.00017808,2]
[425804425,1781913046000,-20355.87,0.00017808,2]
[425804422,1781913046000,-500.0,0.00017808,2]
[425804428,1781913046000,-1673.51,0.00017808,2]
[425804414,1781913046000,-2086.93,0.00017808,2]
[425804396,1781913046000,-500.0,0.00017808,2]
[425804366,1781913046000,-512.39706795,0.00017808,2]
[425804404,1781913046000,-697.18,0.00017808,2]
[425804365,1781913046000,-1905.85,0.00017808,2]
[425804373,1781913046000,-500.0,0.00017808,2]
[425804378,1781913046000,-500.0,0.00017808,2]
[425804371,1781913046000,-728.82,0.00017808,2]
[425804374,1781913046000,-500.0,0.00017808,2]
[425804368,1781913046000,-649.99,0.00017808,2]
[425804369,1781913046000,-500.0,0.00017808,2]
[425804379,1781913046000,-802.53,0.00017808,2]
[425804376,1781913046000,-712.61,0.00017808,2]
[425804367,1781913046000,-1079.84,0.00017808,2]
[425804370,1781913046000,-500.0,0.00017808,2]
[425804372,1781913046000,-500.0,0.00017808,2]
[425804377,1781913046000,-500.0,0.00017808,2]
[425804375,1781913046000,-500.0,0.00017808,2]
[425804391,1781913046000,-751.11,0.00017808,2]
[425804381,1781913046000,-500.0,0.00017808,2]
[425804392,1781913046000,-500.0,0.00017808,2]
[425804380,1781913046000,-606.58,0.00017808,2]
[425804386,1781913046000,-618.61,0.00017808,2]
[425804382,1781913046000,-547.4,0.00017808,2]
[425804385,1781913046000,-500.0,0.00017808,2]
[425804383,1781913046000,-500.0,0.00017808,2]
[425804387,1781913046000,-500.0,0.00017808,2]
[425804389,1781913046000,-892.53,0.00017808,2]
[425804384,1781913046000,-500.0,0.00017808,2]
[425804388,1781913046000,-500.0,0.00017808,2]
[425804390,1781913046000,-906.93,0.00017808,2]
[425804394,1781913046000,-2789.02,0.00017808,2]
[425804423,1781913046000,-2002.33,0.00017808,2]
[425804405,1781913046000,-1471.99,0.00017808,2]
[425804433,1781913046000,-1331.04,0.00017808,2]
[425804464,1781913046000,-250.0,0.00018,2]
[425804431,1781913046000,-500.0,0.00017808,2]
[425804463,1781913046000,-250.0,0.00018,2]
[425804468,1781913046000,-161.65,0.00018081,2]
[425804471,1781913046000,-780.1,0.00018082,2]
[425804469,1781913046000,-740.41,0.00018082,2]
[425804466,1781913046000,-364.5,0.00018,2]
[425804470,1781913046000,-783.69,0.00018082,2]
[425804467,1781913046000,-161.65,0.00018079,2]
[425804475,1781913046000,-831.56,0.00018082,2]
[425804485,1781913046000,-500.0,0.00018082,2]
[425804474,1781913046000,-500.0,0.00018082,2]
[425804476,1781913046000,-500.0,0.00018082,2]
[425804486,1781913046000,-514.0129903,0.00018082,2]
[425804479,1781913046000,-472.64586246,0.00018082,2]
[425804482,1781913046000,-708.92,0.00018082,2]
[425804480,1781913046000,-500.0,0.00018082,2]
[425804483,1781913046000,-500.0,0.00018082,2]
[425804478,1781913046000,-556.06,0.00018082,2]
[425804477,1781913046000,-500.0,0.00018082,2]
[425804484,1781913046000,-500.0,0.00018082,2]
[425804490,1781913046000,-500.0,0.00018082,2]
[425804492,1781913046000,-1788.54,0.00018082,2]
[425804494,1781913046000,-1905.85,0.00018082,2]
[425804487,1781913046000,-500.0,0.00018082,2]
[425804493,1781913046000,-500.0,0.00018082,2]
[425804496,1781913046000,-649.99,0.00018082,2]
[425804488,1781913046000,-876.67,0.00018082,2]
[425804495,1781913046000,-1079.84,0.00018082,2]
[425804497,1781913046000,-500.0,0.00018082,2]
[425804432,1781913046000,-915.84,0.00017808,2]
[425804461,1781913046000,-250.0,0.00018,2]
[425804465,1781913046000,-250.0,0.00018,2]
[425804481,1781913046000,-500.0,0.00018082,2]
[425804462,1781913046000,-250.0,0.00018,2]
[425804434,1781913046000,-1158.33,0.00017808,2]
[425804472,1781913046000,-500.0,0.00018082,2]
[425804429,1781913046000,-1221.2,0.00017808,2]
[425804436,1781913046000,-500.0,0.00017808,2]
[425804435,1781913046000,-500.0,0.00017808,2]
[425804439,1781913046000,-3573.02,0.00017808,2]
[425804438,1781913046000,-500.0,0.00017808,2]
[425804447,1781913046000,-319.237541,0.00017998,2]
[425804446,1781913046000,-7467.568423,0.00017966,2]
[425804442,1781913046000,-182.11,0.00017808,2]
[425804443,1781913046000,-4507.10311405,0.000179,2]
[425804444,1781913046000,-3552.387415,0.00017966,2]
[425804445,1781913046000,-6488.296259,0.00017966,2]
[425804440,1781913046000,-895.94,0.00017808,2]
[425804441,1781913046000,-943.28,0.00017808,2]
[425804437,1781913046000,-3130.24,0.00017808,2]
[425804459,1781913046000,-250.0,0.00018,2]
[425804473,1781913046000,-500.0,0.00018082,2]
[425804448,1781913046000,-1689.77588586,0.00018,2]
[425804457,1781913046000,-250.0,0.00018,2]
[425804452,1781913046000,-1000.0,0.00018,2]
[425804460,1781913046000,-250.0,0.00018,2]
[425804456,1781913046000,-212.89,0.00018,2]
[425804454,1781913046000,-212.89,0.00018,2]
[425804458,1781913046000,-250.0,0.00018,2]
[425804449,1781913046000,-592602.67435073,0.00018,2]
[425804453,1781913046000,-10000.0,0.00018,2]
[425804451,1781913046000,-32869.18326091,0.00018,2]
[425804450,1781913046000,-1249.32706527,0.00018,2]
[425804455,1781913046000,-212.89,0.00018,2]
[425804536,1781913047000,-500.0,0.00018082,2]
[425804553,1781913047000,-20355.87,0.00018082,2]
[425804543,1781913047000,-500.0,0.00018082,2]
[425804541,1781913047000,-5275.87,0.00018082,2]
[425804540,1781913047000,-1000.0,0.00018082,2]
[425804534,1781913047000,-3130.15,0.00018082,2]
[425804532,1781913047000,-697.18,0.00018082,2]
[425804530,1781913047000,-727.8,0.00018082,2]
[425804539,1781913047000,-1233.8,0.00018082,2]
[425804535,1781913047000,-1074.82,0.00018082,2]
[425804538,1781913047000,-3227.06,0.00018082,2]
[425804544,1781913047000,-500.0,0.00018082,2]
[425804537,1781913047000,-2863.02,0.00018082,2]
[425804542,1781913047000,-2086.93,0.00018082,2]
[425804556,1781913047000,-500.0,0.00018082,2]
[425804551,1781913047000,-500.0,0.00018082,2]
[425804549,1781913047000,-500.0,0.00018082,2]
[425804552,1781913047000,-2002.33,0.00018082,2]
[425804546,1781913047000,-500.0,0.00018082,2]
[425804548,1781913047000,-500.0,0.00018082,2]
[425804547,1781913047000,-1169.22,0.00018082,2]
[425804545,1781913047000,-877.91,0.00018082,2]
[425804550,1781913047000,-500.0,0.00018082,2]
[425804555,1781913047000,-1221.2,0.00018082,2]
[425804557,1781913047000,-500.0,0.00018082,2]
[425804563,1781913047000,-3130.24,0.00018082,2]
[425804558,1781913047000,-1331.04,0.00018082,2]
[425804561,1781913047000,-500.0,0.00018082,2]
[425804531,1781913047000,-3369.19,0.00018082,2]
[425804554,1781913047000,-1673.51,0.00018082,2]
[425804529,1781913047000,-500.0,0.00018082,2]
[425804499,1781913047000,-728.82,0.00018082,2]
[425804524,1781913047000,-500.0,0.00018082,2]
[425804565,1781913047000,-3573.02,0.00018082,2]
[425804498,1781913047000,-500.0,0.00018082,2]
[425804501,1781913047000,-500.0,0.00018082,2]
[425804502,1781913047000,-500.0,0.00018082,2]
[425804506,1781913047000,-500.0,0.00018082,2]
[425804509,1781913047000,-500.0,0.00018082,2]
[425804503,1781913047000,-500.0,0.00018082,2]
[425804505,1781913047000,-500.0,0.00018082,2]
[425804507,1781913047000,-802.53,0.00018082,2]
[425804511,1781913047000,-500.0,0.00018082,2]
[425804515,1781913047000,-500.0,0.00018082,2]
[425804504,1781913047000,-712.61,0.00018082,2]
[425804508,1781913047000,-606.58,0.00018082,2]
[425804514,1781913047000,-618.61,0.00018082,2]
[425804510,1781913047000,-547.4,0.00018082,2]
[425804513,1781913047000,-500.0,0.00018082,2]
[425804512,1781913047000,-500.0,0.00018082,2]
[425804518,1781913047000,-906.93,0.00018082,2]
[425804517,1781913047000,-892.53,0.00018082,2]
[425804516,1781913047000,-500.0,0.00018082,2]
[425804520,1781913047000,-500.0,0.00018082,2]
[425804519,1781913047000,-751.11,0.00018082,2]
[425804522,1781913047000,-2789.02,0.00018082,2]
[425804527,1781913047000,-500.0,0.00018082,2]
[425804528,1781913047000,-500.0,0.00018082,2]
[425804521,1781913047000,-500.0,0.00018082,2]
[425804525,1781913047000,-2075.89,0.00018082,2]
[425804526,1781913047000,-500.0,0.00018082,2]
[425804523,1781913047000,-1298.7,0.00018082,2]
[425804533,1781913047000,-1471.99,0.00018082,2]
[425804566,1781913047000,-895.94,0.00018082,2]
[425804500,1781913047000,-500.0,0.00018082,2]
[425804559,1781913047000,-915.84,0.00018082,2]
[425804602,1781913047000,-649.99,0.00018356,2]
[425804597,1781913047000,-500.0,0.00018356,2]
[425804606,1781913047000,-500.0,0.00018356,2]
[425804607,1781913047000,-500.0,0.00018356,2]
[425804601,1781913047000,-1079.84,0.00018356,2]
[425804603,1781913047000,-500.0,0.00018356,2]
[425804604,1781913047000,-500.0,0.00018356,2]
[425804599,1781913047000,-500.0,0.00018356,2]
[425804595,1781913047000,-500.0,0.00018356,2]
[425804612,1781913047000,-533.9443902,0.00018356,2]
[425804611,1781913047000,-500.0,0.00018356,2]
[425804620,1781913047000,-618.61,0.00018356,2]
[425804618,1781913047000,-500.0,0.00018356,2]
[425804609,1781913047000,-500.0,0.00018356,2]
[425804615,1781913047000,-500.0,0.00018356,2]
[425804608,1781913047000,-500.0,0.00018356,2]
[425804619,1781913047000,-500.0,0.00018356,2]
[425804616,1781913047000,-547.4,0.00018356,2]
[425804614,1781913047000,-606.58,0.00018356,2]
[425804610,1781913047000,-712.61,0.00018356,2]
[425804613,1781913047000,-802.53,0.00018356,2]
[425804617,1781913047000,-500.0,0.00018356,2]
[425804628,1781913047000,-2789.02,0.00018356,2]
[425804621,1781913047000,-500.0,0.00018356,2]
[425804622,1781913047000,-500.0,0.00018356,2]
[425804627,1781913047000,-500.0,0.00018356,2]
[425804623,1781913047000,-892.53,0.00018356,2]
[425804624,1781913047000,-906.93,0.00018356,2]
[425804626,1781913047000,-500.0,0.00018356,2]
[425804596,1781913047000,-876.67,0.00018356,2]
[425804600,1781913047000,-1905.85,0.00018356,2]
[425804625,1781913047000,-751.11,0.00018356,2]
[425804605,1781913047000,-728.82,0.00018356,2]
[425804598,1781913047000,-1788.54,0.00018356,2]
[425804564,1781913047000,-500.0,0.00018082,2]
[425804562,1781913047000,-500.0,0.00018082,2]
[425804568,1781913047000,-161.65,0.00018083,2]
[425804580,1781913047000,-783.69,0.00018356,2]
[425804578,1781913047000,-169.41,0.00018211,2]
[425804567,1781913047000,-943.28,0.00018082,2]
[425804579,1781913047000,-740.41,0.00018356,2]
[425804570,1781913047000,-161.63,0.00018087,2]
[425804569,1781913047000,-161.65,0.00018085,2]
[425804577,1781913047000,-4507.10311405,0.000182,2]
[425804572,1781913047000,-4507.10311405,0.000181,2]
[425804575,1781913047000,-26135.602958,0.000182,2]
[425804576,1781913047000,-1249.32706527,0.000182,2]
[425804571,1781913047000,-161.65,0.00018087,2]
[425804560,1781913047000,-1158.33,0.00018082,2]
[425804574,1781913047000,-385.958442,0.00018169,2]
[425804573,1781913047000,-204.699996,0.00018105,2]
[425804593,1781913047000,-604.57618845,0.00018356,2]
[425804590,1781913047000,-500.0,0.00018356,2]
[425804589,1781913047000,-500.0,0.00018356,2]
[425804585,1781913047000,-831.56,0.00018356,2]
[425804591,1781913047000,-708.92,0.00018356,2]
[425804594,1781913047000,-500.0,0.00018356,2]
[425804588,1781913047000,-556.06,0.00018356,2]
[425804582,1781913047000,-500.0,0.00018356,2]
[425804584,1781913047000,-500.0,0.00018356,2]
[425804583,1781913047000,-515.03832094,0.00018356,2]
[425804581,1781913047000,-780.1,0.00018356,2]
[425804592,1781913047000,-500.0,0.00018356,2]
[425804586,1781913047000,-647.45977186,0.00018356,2]
[425804587,1781913047000,-500.0,0.00018356,2]
[425804677,1781913048000,-165.64672961,0.000184,2]
[425804662,1781913048000,-500.0,0.00018356,2]
[425804664,1781913048000,-1331.04,0.00018356,2]
[425804668,1781913048000,-500.0,0.00018356,2]
[425804667,1781913048000,-500.0,0.00018356,2]
[425804666,1781913048000,-1158.33,0.00018356,2]
[425804665,1781913048000,-915.84,0.00018356,2]
[425804669,1781913048000,-3130.24,0.00018356,2]
[425804671,1781913048000,-3573.02,0.00018356,2]
[425804670,1781913048000,-500.0,0.00018356,2]
[425804672,1781913048000,-895.94,0.00018356,2]
[425804663,1781913048000,-500.0,0.00018356,2]
[425804680,1781913048000,-720.0,0.00018442,2]
[425804674,1781913048000,-4513.697348,0.00018366,2]
[425804673,1781913048000,-943.28,0.00018356,2]
[425804676,1781913048000,-4507.10311405,0.000184,2]
[425804675,1781913048000,-1249.32706527,0.000184,2]
[425804678,1781913048000,-165.64672961,0.000184,2]
[425804661,1781913048000,-1221.2,0.00018356,2]
[425804683,1781913048000,-783.69,0.0001863,2]
[425804682,1781913048000,-740.41,0.0001863,2]
[425804684,1781913048000,-780.1,0.0001863,2]
[425804686,1781913048000,-500.0,0.0001863,2]
[425804687,1781913048000,-831.56,0.0001863,2]
[425804688,1781913048000,-500.0,0.0001863,2]
[425804690,1781913048000,-500.0,0.0001863,2]
[425804681,1781913048000,-1249.32706527,0.000185,2]
[425804679,1781913048000,-165.64672961,0.000184,2]
[425804655,1781913048000,-513.66897129,0.00018356,2]
[425804651,1781913048000,-877.91,0.00018356,2]
[425804657,1781913048000,-500.0,0.00018356,2]
[425804685,1781913048000,-500.0,0.0001863,2]
[425804630,1781913048000,-213.88235918,0.00018356,2]
[425804633,1781913048000,-500.0,0.00018356,2]
[425804632,1781913048000,-500.0,0.00018356,2]
[425804629,1781913048000,-1298.7,0.00018356,2]
[425804631,1781913048000,-2075.89,0.00018356,2]
[425804637,1781913048000,-3369.19,0.00018356,2]
[425804634,1781913048000,-500.0,0.00018356,2]
[425804641,1781913048000,-1074.82,0.00018356,2]
[425804636,1781913048000,-727.8,0.00018356,2]
[425804644,1781913048000,-3227.06,0.00018356,2]
[425804646,1781913048000,-1000.0,0.00018356,2]
[425804639,1781913048000,-1471.99,0.00018356,2]
[425804654,1781913048000,-500.0,0.00018356,2]
[425804643,1781913048000,-2863.02,0.00018356,2]
[425804638,1781913048000,-697.18,0.00018356,2]
[425804635,1781913048000,-500.0,0.00018356,2]
[425804640,1781913048000,-3130.15,0.00018356,2]
[425804647,1781913048000,-5275.87,0.00018356,2]
[425804649,1781913048000,-500.0,0.00018356,2]
[425804659,1781913048000,-20355.87,0.00018356,2]
[425804660,1781913048000,-1673.51,0.00018356,2]
[425804648,1781913048000,-2086.93,0.00018356,2]
[425804652,1781913048000,-514.44886673,0.00018356,2]
[425804650,1781913048000,-500.0,0.00018356,2]
[425804653,1781913048000,-1169.22,0.00018356,2]
[425804656,1781913048000,-500.0,0.00018356,2]
[425804658,1781913048000,-2002.33,0.00018356,2]
[425804645,1781913048000,-1233.8,0.00018356,2]
[425804642,1781913048000,-500.0,0.00018356,2]
[425804689,1781913048000,-556.06,0.0001863,2]
[425804692,1781913048000,-708.92,0.0001863,2]
[425804726,1781913048000,-511.52418483,0.0001863,2]
[425804728,1781913048000,-1298.7,0.0001863,2]
[425804723,1781913048000,-906.93,0.0001863,2]
[425804721,1781913048000,-500.0,0.0001863,2]
[425804725,1781913048000,-500.0,0.0001863,2]
[425804719,1781913048000,-618.61,0.0001863,2]
[425804724,1781913048000,-751.11,0.0001863,2]
[425804735,1781913048000,-3369.19,0.0001863,2]
[425804733,1781913048000,-500.0,0.0001863,2]
[425804742,1781913048000,-3227.06,0.0001863,2]
[425804740,1781913048000,-500.0,0.0001863,2]
[425804736,1781913048000,-697.18,0.0001863,2]
[425804734,1781913048000,-727.8,0.0001863,2]
[425804732,1781913048000,-300.378623,0.0001863,2]
[425804739,1781913048000,-1074.82,0.0001863,2]
[425804737,1781913048000,-1471.99,0.0001863,2]
[425804743,1781913048000,-1233.8,0.0001863,2]
[425804744,1781913048000,-1000.0,0.0001863,2]
[425804741,1781913048000,-2863.02,0.0001863,2]
[425804747,1781913048000,-513.43729577,0.0001863,2]
[425804745,1781913048000,-5275.87,0.0001863,2]
[425804751,1781913048000,-500.0,0.0001863,2]
[425804750,1781913048000,-1169.22,0.0001863,2]
[425804748,1781913048000,-500.0,0.0001863,2]
[425804749,1781913048000,-877.91,0.0001863,2]
[425804746,1781913048000,-2086.93,0.0001863,2]
[425804691,1781913048000,-643.04769812,0.0001863,2]
[425804731,1781913048000,-472.93557955,0.0001863,2]
[425804727,1781913048000,-2789.02,0.0001863,2]
[425804738,1781913048000,-3130.15,0.0001863,2]
[425804730,1781913048000,-500.0,0.0001863,2]
[425804694,1781913048000,-500.0,0.0001863,2]
[425804729,1781913048000,-2075.89,0.0001863,2]
[425804693,1781913048000,-500.0,0.0001863,2]
[425804705,1781913048000,-728.82,0.0001863,2]
[425804704,1781913048000,-173.99142073,0.0001863,2]
[425804695,1781913048000,-500.0,0.0001863,2]
[425804696,1781913048000,-876.67,0.0001863,2]
[425804700,1781913048000,-1905.85,0.0001863,2]
[425804702,1781913048000,-649.99,0.0001863,2]
[425804699,1781913048000,-634.91247879,0.0001863,2]
[425804701,1781913048000,-1079.84,0.0001863,2]
[425804698,1781913048000,-1788.54,0.0001863,2]
[425804703,1781913048000,-500.0,0.0001863,2]
[425804706,1781913048000,-500.0,0.0001863,2]
[425804697,1781913048000,-429.62568189,0.0001863,2]
[425804715,1781913048000,-547.4,0.0001863,2]
[425804711,1781913048000,-500.0,0.0001863,2]
[425804709,1781913048000,-500.0,0.0001863,2]
[425804710,1781913048000,-712.61,0.0001863,2]
[425804712,1781913048000,-802.53,0.0001863,2]
[425804707,1781913048000,-500.0,0.0001863,2]
[425804713,1781913048000,-606.58,0.0001863,2]
[425804714,1781913048000,-500.0,0.0001863,2]
[425804717,1781913048000,-500.0,0.0001863,2]
[425804718,1781913048000,-500.0,0.0001863,2]
[425804716,1781913048000,-500.0,0.0001863,2]
[425804708,1781913048000,-500.0,0.0001863,2]
[425804720,1781913048000,-500.0,0.0001863,2]
[425804722,1781913048000,-892.53,0.0001863,2]
[425804791,1781913049000,-500.0,0.00018904,2]
[425804786,1781913049000,-556.06,0.00018904,2]
[425804790,1781913049000,-500.0,0.00018904,2]
[425804793,1781913049000,-1788.54,0.00018904,2]
[425804797,1781913049000,-500.0,0.00018904,2]
[425804794,1781913049000,-1905.85,0.00018904,2]
[425804788,1781913049000,-708.92,0.00018904,2]
[425804795,1781913049000,-1079.84,0.00018904,2]